Cogmind - Beta 14 @@@ ROGUE MODE // 2024.09.30 @ 11:21:12 Player: Corvi Result: Destroyed by H-71 Marshal with Heavy Mass Driver Performance ------------- Evolutions (6) 3000 Regions Visited (20) 4000 Robots Destroyed (123) 615 Value Destroyed (4357) 4357 Prototype IDs (51) 1020 Alien Tech Used (0) 0 Bonus (1296) 1296 TOTAL SCORE: 14288 Bonus ------- High Alert Combat Kills 204 Follower Combat Kills 758 Entered Garrisons 200 Aligned with FarCom 300 Met Data Miner 300 Friendly Fire -466 Cogmind --------- Core Integrity 0/1150 Matter 269/300 Energy 100/100 System Corruption 10% Temperature Cool (1) Movement Hovering (60) Location -4/Factory Parts ------- > --- POWER (1) -------- (None) > --- PROPULSION (5) --- Gravmag Array > --- UTILITY (10) ----- (None) > --- WEAPON (3) ------- (None) > --- INVENTORY (5) ---- Light Fission Core Compact Particle Reactor Medium Regenerative Plating Improved Trap Extractor (0/6) Advanced Datajack Peak State ------------ > --- POWER ------------ Light Angular Momentum Engine > --- PROPULSION ------- Improved VTOL Module Nuclear Pulse Array Impulse Thruster Impulse Thruster > --- UTILITY ---------- Lightpack 2.0 Advanced Terrain Scanner Launcher Guidance Computer Hacking Suite Improved Hacking Suite System Shield Improved System Shield > --- WEAPON ----------- Neutron Missile Launcher Chainsword > --- INVENTORY -------- Enhanced Nuclear Core Micro Nuclear Core Micro Nuclear Core Light Angular Momentum Engine Light Fission Core Neutrino Core Neutrino Core Nuclear Pulse Thruster Cooled Cesium-ion Thruster Cooled Cesium-ion Thruster Gravity Neutralizer Enhanced Optical Array Melee Analysis Suite Advanced Melee Analysis Suite Advanced Melee Analysis Suite Advanced Melee Analysis Suite Core Analyzer Core Analyzer Launcher Loader Microactuators Phase Shifter Improved Propulsion Shielding Improved Propulsion Shielding Improved Propulsion Shielding Improved Propulsion Shielding Improved Light Armor Plating Improved Shield Generator System Restoration Module Improved Trap Extractor Smartbomb Launcher Smartbomb Launcher Smartbomb Launcher Smartbomb Launcher Smartbomb Launcher [Rating: 121] Favorites ----------- Power Micro Nuclear Core Engine Ion Engine Power Core Micro Nuclear Core Reactor Compact Particle Reactor Propulsion Cesium-ion Thruster Treads Light Treads Leg Carbon-fiber Leg Hover Unit Gravmag System Flight Unit Cesium-ion Thruster Utility Hacking Suite Device Advanced Terrain Scanner Storage Lightpack 2.0 Processor Improved Terrain Scan Processor Hackware Hacking Suite Protection Improved Propulsion Shielding Weapon Improved Assault Rifle Energy Gun EM Pulse Gun Energy Cannon Beam Cannon Ballistic Gun Improved Assault Rifle Launcher Grenade Launcher Impact Weapon Impact Mace Slashing Weapon Chainsword Build | -11 -10 -10 -10 -9 -8 -7 -6 -6 -6 -6 -6 -6 -5 -5 -5 -5 -5 -5 -5 -4 ------- Run | Yrd Mat Min Exi Min Mat Fac Fac Was Fac Low Low Dat Pro Fac Ext Cet Arc Hub Gar Fac Slots Evolved 12 | . . . . . 4 2 2 . . . . . . 2 . . . . . 2 Power . | . . . . . . . . . . . . . . . . . . . . . Propulsion 3 | . . . . . 2 . . . . . . . . 1 . . . . . . Utility 8 | . . . . . 2 2 2 . . . . . . 1 . . . . . 1 Weapon 1 | . . . . . . . . . . . . . . . . . . . . 1 Parts Attached 209 | 7 19 3 . . 28 22 6 1 20 5 4 . 3 13 28 15 23 1 2 9 Power 22 | 1 . . . . 2 6 . . . 2 1 . . 1 4 2 3 . . . Engine 5 | 1 . . . . . 1 . . . 1 . . . 1 1 . . . . . Core 15 | . . . . . 2 5 . . . 1 1 . . . 3 2 1 . . . Reactor 2 | . . . . . . . . . . . . . . . . . 2 . . . Propulsion 56 | 2 4 . . . 13 2 . . 7 2 . . . 3 9 2 9 . . 3 Treads 13 | 2 4 . . . 3 . . . . . . . . . . . 4 . . . Leg 7 | . . . . . 5 . . . . . . . . . . 2 . . . . Wheel . | . . . . . . . . . . . . . . . . . . . . . Hover 8 | . . . . . . . . . . . . . . . 1 . 5 . . 2 Flight 28 | . . . . . 5 2 . . 7 2 . . . 3 8 . . . . 1 Utility 65 | 1 3 . . . 7 9 6 . 7 1 2 . 2 5 6 5 8 . 1 2 Device 24 | . . . . . 1 2 3 . 5 1 2 . . 3 4 2 . . . 1 Storage 3 | 1 1 . . . 1 . . . . . . . . . . . . . . . Processor 13 | . . . . . 2 1 3 . . . . . . 1 1 . 5 . . . Hackware 11 | . . . . . . 3 . . 2 . . . 1 1 . 1 2 . . 1 Protection 14 | . 2 . . . 3 3 . . . . . . 1 . 1 2 1 . 1 . Artifact . | . . . . . . . . . . . . . . . . . . . . . Weapon 66 | 3 12 3 . . 6 5 . 1 6 . 1 . 1 4 9 6 3 1 1 4 Energy Gun 8 | 2 2 . . . . 1 . . . . . . . . . . . . . 3 Energy Cannon 4 | . 4 . . . . . . . . . . . . . . . . . . . Ballistic Gun 11 | 1 2 . . . 5 2 . . 1 . . . . . . . . . . . Ballistic Cannon . | . . . . . . . . . . . . . . . . . . . . . Launcher 26 | . 4 3 . . . 1 . 1 1 . 1 . 1 1 5 5 2 . 1 . Special Weapon . | . . . . . . . . . . . . . . . . . . . . . Impact Weapon 4 | . . . . . . . . . 3 . . . . 1 . . . . . . Slashing Weapon 13 | . . . . . 1 1 . . 1 . . . . 2 4 1 1 1 . 1 Piercing Weapon . | . . . . . . . . . . . . . . . . . . . . . Special Melee Weapon . | . . . . . . . . . . . . . . . . . . . . . Unidentified Prototypes 15 | . 1 . . . 1 4 1 1 3 . . . . . . 3 1 . . . Parts Lost 53 | . . 1 . . 3 . . . 3 2 . . 4 . 9 14 . . 1 16 Power 2 | . . . . . . . . . . . . . . . . 2 . . . . Propulsion 21 | . . . . . 1 . . . 3 1 . . . . 5 4 . . . 7 Utility 20 | . . . . . 2 . . . . 1 . . 2 . 4 4 . . 1 6 Weapon 10 | . . 1 . . . . . . . . . . 2 . . 4 . . . 3 Highest Loss Streak 14 | . . 1 . . 1 . . . 2 1 . . 4 . 5 14 . . 1 10 To Critical Strikes 3 | . . . . . 1 . . . . . . . . . . 2 . . . . Average Slot Usage (%) 81 | . 93 100 100 100 90 82 86 84 79 76 82 86 84 81 66 41 82 94 92 67 Engine 3 | . 14 14 14 14 3 . . . . 1 . . . . 2 . . . . . Core 3 | . . . . . 5 6 6 6 6 4 5 6 6 4 1 1 4 . . . Treads 6 | . 27 28 28 28 7 . . . . . . . . . . . 8 . . . Leg 3 | . . . . . 22 . . . . . . . . . . 2 2 . . . Hover 2 | . . . . . . . . . . . . . . . 1 . 11 29 29 13 Flight 11 | . . . . . 1 29 26 26 25 26 26 26 26 22 18 2 . . . . Device 3 | . . . . . 3 1 3 6 3 . 5 6 3 5 6 9 4 . . 4 Storage 6 | . 14 14 14 14 9 7 6 6 6 6 6 6 6 5 5 5 1 . . . Processor 6 | . . . . . 11 1 9 6 6 6 6 6 6 5 2 . 13 17 17 14 Hackware 12 | . . . . . . 15 20 20 22 22 20 20 19 21 16 5 16 23 23 19 Protection 4 | . 9 14 14 14 7 2 . . . . . . 2 1 1 4 9 11 9 5 Ballistic Gun 4 | . 10 10 . . 17 2 . . . . . . . . . . . . . . Launcher 3 | . 3 17 28 28 . 4 6 4 . . 3 6 4 4 2 . 2 4 1 2 Slashing Weapon 2 | . . . . . . 6 6 6 1 . . . . 2 3 4 2 . 3 4 Peak Build Rating 121 | 6 13 13 12 12 56 76 87 90 93 94 93 92 92 121 121 103 113 88 89 99 Average Rating 63 | 4 8 10 10 12 28 70 86 84 87 90 91 92 90 108 99 75 82 87 81 70 On Entrance 64 | . 5 13 9 12 12 53 76 87 81 89 88 92 92 89 121 96 92 88 80 89 Naked Turns 28 | . . . . . . . . . . . . . . . . . . . . 28 Heaviest Build 42 | 13 38 38 38 38 42 20 20 20 21 19 19 19 19 29 29 39 32 31 36 42 Greatest Support 112 | 40 40 40 40 40 80 21 21 21 21 20 20 20 20 32 32 30 112 45 45 45 Greatest Overweight (x) 12 | 4 1 . . . 12 . . . 1 1 . . . 1 2 5 2 . . 2 Average Overweight (x) . | 1 . . . . . . . . . . . . . . . 2 . . . . Largest Inventory Capacity 40 | 8 15 15 15 15 40 40 40 40 40 40 40 40 40 40 40 40 40 5 5 5 Average Capacity 26 | 7 14 15 15 15 15 40 40 40 40 40 40 40 40 40 40 40 15 5 5 5 Most Carried 40 | 2 9 9 11 11 15 36 40 39 40 40 39 38 38 40 40 31 23 5 5 5 Average Carried 21 | . 6 8 9 11 13 25 38 38 38 39 38 38 36 31 36 26 9 4 4 3 Final Capacity 40 | 8 15 15 15 15 40 40 40 40 40 40 40 40 40 40 40 40 5 5 5 5 Final Carried 40 | 1 9 8 11 11 8 36 39 38 40 39 38 38 35 40 31 23 5 5 4 5 Class Distribution -------------------- 24% | Mutant 20% | Hauler-Sprinter 12% | Hacker-Mutant 11% | Hauler-Mutant 11% | Scavenger-Mutant 9% | Hacker-Sprinter 5% | Hacker-Scout 4% | Hauler-Scout Dominant Class ---------------- Mutant | -10/Materials Mutant | -10/Mines Mutant | -10/Exiles Mutant | -9/Mines Scavenger-Mutant | -8/Materials Hauler-Sprinter | -7/Factory Hauler-Sprinter | -6/Factory Hauler-Scout | -6/Waste Hacker-Sprinter | -6/Factory Hauler-Sprinter | -6/Lower Caves Hauler-Sprinter | -6/Lower Caves Hauler-Sprinter | -6/Data Miner Hauler-Sprinter | -5/Proximity Caves Hacker-Sprinter | -5/Factory Hauler-Mutant | -5/Extension Hauler-Mutant | -5/Cetus Scavenger-Mutant | -5/Archives Hacker-Mutant | -5/Hub_04(d) Hacker-Mutant | -5/Garrison Hacker-Mutant | -4/Factory Resources | -11 -10 -10 -10 -9 -8 -7 -6 -6 -6 -6 -6 -6 -5 -5 -5 -5 -5 -5 -5 -4 ----------- Run | Yrd Mat Min Exi Min Mat Fac Fac Was Fac Low Low Dat Pro Fac Ext Cet Arc Hub Gar Fac Matter Collected 3837 | 218 151 145 . . 838 176 35 . 206 253 70 . 23 75 760 269 423 . 93 102 Remotely . | . . . . . . . . . . . . . . . . . . . . . Salvage Created 3309 | 3 218 . . . 738 153 62 . 381 28 32 . 26 95 718 16 308 146 210 175 Parts 220 | 2 24 2 . . 59 17 4 . 7 . 3 . 1 5 36 2 17 15 12 14 Haulers Intercepted 2 | . 1 . . . . . . . 1 . . . . . . . . . . . Recyclers Shooed 2 | . . . . . . . . . 1 . . . . . . . . 1 . . Parts Field Recycled . | . . . . . . . . . . . . . . . . . . . . . Retrieved Matter . | . . . . . . . . . . . . . . . . . . . . . Parts Self-Destructed 2 | . . . . . . . . . . . 1 . 1 . . . . . . . Prevented . | . . . . . . . . . . . . . . . . . . . . . Kills | -11 -10 -10 -10 -9 -8 -7 -6 -6 -6 -6 -6 -6 -5 -5 -5 -5 -5 -5 -5 -4 ------- Run | Yrd Mat Min Exi Min Mat Fac Fac Was Fac Low Low Dat Pro Fac Ext Cet Arc Hub Gar Fac Combat Hostiles Destroyed 82 | . 11 1 . . 18 4 3 . 7 1 3 . 2 5 9 3 . 4 7 4 Melee 9 | . . . . . . 1 . . 2 . . . . . 1 1 . . 2 2 Guns 19 | . . . . . 18 . . . . . . . . . . . . . . 1 Cannons 1 | . 1 . . . . . . . . . . . . . . . . . . . AOE 49 | . 10 1 . . . 3 3 . 2 . 3 . 2 5 8 2 . 4 5 1 Classes Destroyed 14 | 1 5 1 . . 2 1 . . . . . . . . 3 . . 1 . . Worker 4 | 1 . 1 . . 1 . . . . . . . . . . . . . . 1 Builder 6 | . . . . . . . . . . . . . . . 4 . . . . 2 Tunneler 2 | . . . . . . . . . . . . . . . 2 . . . . . Hauler 2 | . 1 . . . . . . . 1 . . . . . . . . . . . Recycler 3 | . . . . . . . . . . . . . . . 3 . . . . . Operator 17 | . 1 . . . 2 2 1 . 1 . . . . 1 . . 9 . . . Watcher 7 | . 3 . . . . 1 . . . . . . . 1 1 1 . . . . Swarmer 39 | . 9 . . . 7 3 3 . . . 3 . . 5 4 . . . 5 . Cutter 5 | . . . . . . . . . . . . . . . . . . 4 . 1 Grunt 8 | . 2 . . . 3 . . . 3 . . . . . . . . . . . Sentry 11 | . . . . . 7 . . . . . . . . . 3 . . . 1 . Hunter 6 | . . . . . 1 . . . . . . . 2 . 2 . . . 1 . Programmer 9 | . . . . . . 1 . . 4 1 . . . . . . . . . 3 Cetus Guard 3 | . . . . . . . . . . . . . . . . 3 . . . . Enhanced Grunt 1 | . . . . . . . . . . . . . . . . . . 1 . . Assembled 1 | . . 1 . . . . . . . . . . . . . . . . . . Best Kill Streak 8 | 1 6 2 . . 8 3 3 . 3 1 3 . 1 5 5 2 3 4 5 3 Combat Bots Only 7 | . 6 1 . . 7 3 3 . 2 1 3 . 1 5 4 2 . 4 5 2 Max Kills in Single Turn 5 | 1 4 1 . . 2 2 3 . 3 1 2 . 1 4 3 1 1 4 5 1 Gunslinging . | . . . . . . . . . . . . . . . . . . . . . Exploded 5 | . 4 1 . . . 2 3 . 2 . 2 . 1 4 2 1 . 3 5 1 Melee 1 | . . . . . . 1 . . 1 . . . . . 1 1 . . 1 1 Uniques/NPCs Destroyed . | . . . . . . . . . . . . . . . . . . . . . Combat | -11 -10 -10 -10 -9 -8 -7 -6 -6 -6 -6 -6 -6 -5 -5 -5 -5 -5 -5 -5 -4 -------- Run | Yrd Mat Min Exi Min Mat Fac Fac Was Fac Low Low Dat Pro Fac Ext Cet Arc Hub Gar Fac Hostile Shots Fired 548 | . 25 2 . . 98 29 1 . 29 19 5 . 36 15 36 75 6 5 21 146 Missed 196 | . 6 1 . . 23 14 . . 14 9 4 . 16 9 11 17 1 1 8 62 Damage Taken 8131 | . 210 123 . . 983 240 16 . 238 187 39 . 607 102 1246 1521 121 174 268 2056 Core 2302 | . 15 . . . 101 33 16 . 30 30 8 . 100 18 331 358 . 19 54 1189 Absorbed by Shields 354 | . . . . . . . . . . . . . . . 195 159 . . . . Redirected to Shielding 307 | . . . . . . 19 . . . . . . 58 9 . 121 . 44 56 . Regen/Repaired (Parts) 489 | . . . . . . 31 . . 148 . . . . . . 17 179 10 64 40 Core Remaining (%) 78 | 100 . . . 94 81 95 . . . . . . 78 . . . . . 22 . Volleys Fired 154 | . 16 2 . . 65 3 1 . 1 . 3 . 19 2 21 9 1 2 1 8 Largest 2 | . 2 2 . . 2 1 1 . 1 . 1 . 1 1 1 1 1 1 1 1 Hottest 100 | . 100 60 . . 51 36 36 . 36 . 30 . 30 49 49 49 46 46 46 81 Shots Fired 238 | . 32 4 . . 130 4 1 . 1 . 3 . 20 2 20 9 1 2 1 8 Gun 142 | . 9 . . . 130 . . . . . . . . . . . . . . 3 Cannon 9 | . 9 . . . . . . . . . . . . . . . . . . . Launcher 87 | . 14 4 . . . 4 1 . 1 . 3 . 20 2 20 9 1 2 1 5 Special . | . . . . . . . . . . . . . . . . . . . . . Kinetic 130 | . . . . . 130 . . . . . . . . . . . . . . . Thermal 12 | . 9 . . . . . . . . . . . . . . . . . . 3 Explosive 87 | . 14 4 . . . 4 1 . 1 . 3 . 20 2 20 9 1 2 1 5 Electromagnetic 9 | . 9 . . . . . . . . . . . . . . . . . . . Robot Hit Streak 25 | . 13 17 . . 25 . . . . . 1 . 4 . 5 10 . . . 1 Robot Miss Streak 4 | . 2 . . . 4 1 . . . . 1 . 2 . . . . . . 1 Penetration Max 1 | . . . . . 1 . . . . . . . . . . . . . . . Secondary Targets 2 | . . . . . 2 . . . . . . . . . . . . . . . Max Gunslinging Chain 1 | . . . . . 1 . . . . . . . . . . . . . . . Shots Hit Robots 216 | . 16 4 . . 92 7 1 . 15 6 2 . 9 2 16 8 15 . 12 11 Core Hits 170 | . 21 1 . . 35 8 2 . 3 . 5 . 7 4 31 18 7 8 9 11 Critical Kills 2 | . . . . . 1 . . . 1 . . . . . . . . . . . Critical Parts Destroyed 8 | . . . . . . . . . 6 2 . . . . . . . . . . Critical Strikes 17 | . . . . . 1 . . . 7 2 . . . . . 1 . . 6 . Destroy 1 | . . . . . 1 . . . . . . . . . . . . . . . Smash 9 | . . . . . . . . . 7 2 . . . . . . . . . . Sever 7 | . . . . . . . . . . . . . . . . 1 . . 6 . Melee Attacks 159 | . . . . . . 16 7 . 35 10 . . . 12 26 3 16 . 12 22 Impact 39 | . . . . . . . . . 28 10 . . . 1 . . . . . . Slashing 120 | . . . . . . 16 7 . 7 . . . . 11 26 3 16 . 12 22 Piercing . | . . . . . . . . . . . . . . . . . . . . . Sneak Attacks 23 | . . . . . . . . . 2 . . . . . 8 . 9 . . 4 Combat Hostiles 1 | . . . . . . . . . 1 . . . . . . . . . . . Follow-up Attacks . | . . . . . . . . . . . . . . . . . . . . . Damage Inflicted 13106 | . 789 139 . . 1424 493 217 . 1260 242 214 . 455 651 2140 1216 1420 517 951 978 Guns 1586 | . 115 . . . 1421 . . . . . . . . . . . . . . 50 Cannons 106 | . 106 . . . . . . . . . . . . . . . . . . . Explosions 6427 | . 563 135 . . . 236 176 . 334 . 214 . 455 556 1248 1107 42 517 469 375 Melee 4975 | . . . . . . 257 41 . 926 242 . . . 95 892 109 1378 . 482 553 Ramming 12 | . 5 4 . . 3 . . . . . . . . . . . . . . . Kinetic 1421 | . . . . . 1421 . . . . . . . . . . . . . . . Thermal 570 | . 186 . . . . . . . 334 . . . . . . . . . . 50 Explosive 5989 | . 483 135 . . . 236 176 . . . 214 . 455 556 1248 1107 42 517 469 351 Electromagnetic 139 | . 115 . . . . . . . . . . . . . . . . . . 24 Impact 1118 | . . . . . . . . . 837 242 . . . 39 . . . . . . Slashing 3857 | . . . . . . 257 41 . 89 . . . . 56 892 109 1378 . 482 553 Piercing . | . . . . . . . . . . . . . . . . . . . . . Highest Corruption 13 | . . . . . . 3 . 7 7 4 4 4 10 . 13 3 . . . 10 Average Corruption 4 | . . . . . . 2 . 7 3 3 4 4 6 . 10 2 . . . 5 Corruption Purged 27 | . . . . . . 2 . . 12 . . . . . 10 3 . . . . Corruption Blocked . | . . . . . . . . . . . . . . . . . . . . . Effects 83 | . . . . . . 7 . 1 20 7 3 1 5 . 20 9 . . . 10 Message Errors 16 | . . . . . . 2 . 1 4 2 . . 2 . 4 1 . . . . Matter Fused 25 | . . . . . . . . . 8 2 . . 1 . 7 4 . . . 3 Heat Flow Errors 8 | . . . . . . . . . 1 . 1 . . . 2 1 . . . 3 Energy Discharges 10 | . . . . . . 2 . . 3 . 1 1 . . 2 1 . . . . Parts Rejected 1 | . . . . . . 1 . . . . . . . . . . . . . . Data Loss (minor) 13 | . . . . . . 1 . . 3 2 . . 1 . 1 2 . . . 3 Data Loss (major) 3 | . . . . . . . . . . 1 1 . . . 1 . . . . . Misfires 2 | . . . . . . 1 . . . . . . 1 . . . . . . . Alerts 1 | . . . . . . . . . 1 . . . . . . . . . . . Misdirections 3 | . . . . . . . . . . . . . . . 2 . . . . 1 Weapon Failures 1 | . . . . . . . . . . . . . . . 1 . . . . . Overload Shots . | . . . . . . . . . . . . . . . . . . . . . Overflow Damage 1895 | . 26 5 . . . 21 49 . 615 109 . . . 121 283 . 456 29 25 156 Projectiles 8 | . 8 . . . . . . . . . . . . . . . . . . . Explosions 340 | . 18 5 . . . . 49 . 46 . . . . 92 41 . . 29 25 35 Melee 1547 | . . . . . . 21 . . 569 109 . . . 29 242 . 456 . . 121 Knockbacks 7 | . . . . . . . . . 4 2 . . . 1 . . . . . . Impact 7 | . . . . . . . . . 4 2 . . . 1 . . . . . . Kinetic . | . . . . . . . . . . . . . . . . . . . . . Secondary . | . . . . . . . . . . . . . . . . . . . . . Self-Inflicted Damage 495 | . 35 111 . . . 55 . . 40 . 25 . 17 . 134 . . 78 . . Shots 16 | . 1 4 . . . 1 . . 1 . 1 . 1 . 5 . . 2 . . Rammed 2 | . 2 . . . . . . . . . . . . . . . . . . . Targets Rammed 5 | 1 2 1 . . 1 . . . . . . . . . . . . . . . Kicked 1 | . . . . . 1 . . . . . . . . . . . . . . . Crushed 2 | 1 . 1 . . . . . . . . . . . . . . . . . . Highest Temperature 220 | . 156 18 . . 23 8 . . 184 . 220 . 27 3 178 182 . 22 8 204 Average Temperature 51 | . 47 9 . . 6 5 . . 90 . 108 . 10 3 66 76 . 14 6 56 Received Heat Transfer 907 | . . . . . 243 15 . . 42 30 . . 55 27 86 162 . 18 27 202 Siege Activations . | . . . . . . . . . . . . . . . . . . . . . Robots Corrupted 6 | . . . . . . . . . 4 1 . . . 1 . . . . . . Combat Hostiles 4 | . . . . . . . . . 3 1 . . . . . . . . . . Parts Fried 7 | . . . . . . . . . 4 1 . . . 2 . . . . . . Impact Corruptions 29 | . . . . . . . . . 20 6 . . . 3 . . . . . . Robots Melted . | . . . . . . . . . . . . . . . . . . . . . Combat Hostiles . | . . . . . . . . . . . . . . . . . . . . . Parts Melted . | . . . . . . . . . . . . . . . . . . . . . Heat Transferred 646 | . 322 . . . . . . . 250 . . . . . . . . . . 74 Parts Sabotaged . | . . . . . . . . . . . . . . . . . . . . . Parts Stolen . | . . . . . . . . . . . . . . . . . . . . . Parts Stripped . | . . . . . . . . . . . . . . . . . . . . . Power Chain Reactions 2 | . 2 . . . . . . . . . . . . . . . . . . . Alert | -11 -10 -10 -10 -9 -8 -7 -6 -6 -6 -6 -6 -6 -5 -5 -5 -5 -5 -5 -5 -4 ------- Run | Yrd Mat Min Exi Min Mat Fac Fac Was Fac Low Low Dat Pro Fac Ext Cet Arc Hub Gar Fac Peak Influence 850 | . 219 45 . . 382 228 259 90 451 . . . . 371 850 548 423 226 408 321 Initial 392 | . 3 25 . . . 82 115 90 63 . . . . 166 7 392 154 85 158 214 Average 188 | . 81 32 . . 109 130 208 90 175 . . . . 211 313 400 335 173 243 191 Maximum Alert Level 3 | . 1 . . . 1 1 1 . 2 . . . . 1 3 2 2 1 2 1 Low Security (%) 64 | 100 96 100 . 100 81 85 25 100 63 . . . . 70 57 . 5 45 45 55 Level 1 25 | . 3 . . . 18 14 74 . 27 . . . . 29 6 44 65 54 33 44 Level 2 7 | . . . . . . . . . 9 . . . . . 7 55 29 . 21 . Level 3 2 | . . . . . . . . . . . . . . . 28 . . . . . Level 4 . | . . . . . . . . . . . . . . . . . . . . . Level 5 . | . . . . . . . . . . . . . . . . . . . . . High Security . | . . . . . . . . . . . . . . . . . . . . . Max Security . | . . . . . . . . . . . . . . . . . . . . . Squads Dispatched 22 | . 1 . . . 3 3 3 . 2 . . . . 3 1 1 . 3 . 2 Investigation 5 | . . . . . 2 . 1 . . . . . . 1 . 1 . . . . Extermination 5 | . . . . . . 1 . . 2 . . . . 1 . . . . . 1 Reinforcement 12 | . 1 . . . 1 2 2 . . . . . . 1 1 . . 3 . 1 Assault . | . . . . . . . . . . . . . . . . . . . . . Garrison . | . . . . . . . . . . . . . . . . . . . . . Intercept . | . . . . . . . . . . . . . . . . . . . . . Searches Triggered . | . . . . . . . . . . . . . . . . . . . . . Data Miner Redirects 1 | . . . . . . . . . . . . . . . . 1 . . . . Construction Impeded 2 | . . . . . . . . . . . . . . . 1 . . 1 . . Haulers Reinforced . | . . . . . . . . . . . . . . . . . . . . . Active Scanning Responses . | . . . . . . . . . . . . . . . . . . . . . Cargo Convoy Interrupts 1 | . . . . . . . . . 1 . . . . . . . . . . . Stealth | -11 -10 -10 -10 -9 -8 -7 -6 -6 -6 -6 -6 -6 -5 -5 -5 -5 -5 -5 -5 -4 --------- Run | Yrd Mat Min Exi Min Mat Fac Fac Was Fac Low Low Dat Pro Fac Ext Cet Arc Hub Gar Fac Distress Signals 12 | . 1 . . . 4 1 . . 3 . . . . . 1 1 . 1 . . Communications Jammed . | . . . . . . . . . . . . . . . . . . . . . Distress Signals . | . . . . . . . . . . . . . . . . . . . . . Times Spotted 217 | . 13 1 . . 40 23 7 6 11 13 3 . 16 9 23 6 9 6 2 29 Peak Tracking Total 11 | . 6 1 . . 5 8 3 6 3 6 3 . 11 5 4 5 2 5 1 9 Tactical Retreats 28 | . . . . . 1 5 . . 2 4 . . 5 2 3 . . . . 6 Traps | -11 -10 -10 -10 -9 -8 -7 -6 -6 -6 -6 -6 -6 -5 -5 -5 -5 -5 -5 -5 -4 ------- Run | Yrd Mat Min Exi Min Mat Fac Fac Was Fac Low Low Dat Pro Fac Ext Cet Arc Hub Gar Fac Traps Triggered 21 | . 3 . . . 1 4 1 . . . . . . 1 7 . . . 4 . Indirectly . | . . . . . . . . . . . . . . . . . . . . . Trap Hack Attempts . | . . . . . . . . . . . . . . . . . . . . . Triggered . | . . . . . . . . . . . . . . . . . . . . . Disarmed . | . . . . . . . . . . . . . . . . . . . . . Reprogrammed . | . . . . . . . . . . . . . . . . . . . . . Reused . | . . . . . . . . . . . . . . . . . . . . . Traps Extracted . | . . . . . . . . . . . . . . . . . . . . . Installed . | . . . . . . . . . . . . . . . . . . . . . Triggered 2 | . . . . . . . . . 2 . . . . . . . . . . . Machines | -11 -10 -10 -10 -9 -8 -7 -6 -6 -6 -6 -6 -6 -5 -5 -5 -5 -5 -5 -5 -4 ---------- Run | Yrd Mat Min Exi Min Mat Fac Fac Was Fac Low Low Dat Pro Fac Ext Cet Arc Hub Gar Fac Machines Disabled 51 | . 6 . . . 2 1 . . 18 . . . . . 7 5 4 2 1 5 Max in Single Turn 18 | . 2 . . . 1 1 . . 18 . . . . . 2 . 2 1 1 4 Garrison Access 6 | . . . . . . 1 1 . 2 . . . . 1 . . . . . 1 Garrison Relay 1 | . . . . . . . . . . . . . . . . . . . 1 . Energy Cycler 1 | . . . . . . . . . . . . . . . 1 . . . . . Machines Repaired . | . . . . . . . . . . . . . . . . . . . . . Machines Dismantled . | . . . . . . . . . . . . . . . . . . . . . Machines Sabotaged . | . . . . . . . . . . . . . . . . . . . . . Overloaded Fab Kills . | . . . . . . . . . . . . . . . . . . . . . Hacking | -11 -10 -10 -10 -9 -8 -7 -6 -6 -6 -6 -6 -6 -5 -5 -5 -5 -5 -5 -5 -4 --------- Run | Yrd Mat Min Exi Min Mat Fac Fac Was Fac Low Low Dat Pro Fac Ext Cet Arc Hub Gar Fac Machines Accessed 72 | . 6 . 1 . 9 10 9 . 8 . 1 4 . 9 7 2 . 2 . 4 Terminals 39 | . 5 . . . 7 3 5 . 3 . . . . 5 6 2 . 1 . 2 Fabricators 3 | . . . . . . 2 . . . . . . . 1 . . . . . . Repair Stations 6 | . . . . . . 2 . . 3 . . . . 1 . . . . . . Recycling Units 7 | . 1 . . . 1 1 2 . . . . . . 1 1 . . . . . Scanalyzers 4 | . . . . . 1 1 1 . . . . . . . . . . . . 1 Garrison Access 7 | . . . . . . 1 1 . 2 . . . . 1 . . . 1 . 1 Total Hacks 252 | . 18 . 1 . 36 22 32 . 27 . 1 34 . 26 21 8 . 8 . 18 Successful 158 | . 7 . 1 . 23 12 18 . 19 . 1 34 . 12 10 3 . 5 . 13 Failed 93 | . 10 . . . 13 10 14 . 8 . . . . 14 11 5 . 3 . 5 Catastrophic 16 | . 4 . . . . 1 3 . 1 . . . . 2 3 1 . . . 1 Database Lockouts 1 | . 1 . . . . . . . . . . . . . . . . . . . Manual 79 | . 13 . 1 . 15 5 13 . 4 . . . . 10 7 1 . 2 . 8 Terminals 126 | . 14 . . . 18 10 17 . 12 . . . . 15 19 8 . 4 . 9 Fabricators 10 | . . . . . . 3 . . . . . . . 7 . . . . . . Repair Stations 19 | . . . . . . 6 . . 12 . . . . 1 . . . . . . Recycling Units 14 | . 4 . . . 2 1 4 . . . . . . 1 2 . . . . . Scanalyzers 35 | . . . . . 16 1 10 . . . . . . . . . . . . 8 Garrison Access 12 | . . . . . . 1 1 . 3 . . . . 2 . . . 4 . 1 Terminal Hacks 86 | . 3 . 1 . 5 5 3 . 8 . 1 34 . 7 9 3 . 4 . 3 Record 15 | . . . . . 1 . . . . . . 11 . . . 3 . . . . Part Schematic 14 | . . . . . . . 1 . . . . 12 . . 1 . . . . . Robot Schematic 8 | . . . . . . . . . . . . 8 . . . . . . . . Robot Analysis 8 | . 2 . . . . 1 . . 2 . . . . . 2 . . . . 1 Prototype ID Bank 4 | . . . . . . . . . . . . 3 . . 1 . . . . . Open Door 1 | . . . . . . . . . . . 1 . . . . . . . . . Branch Access Points 1 | . . . . . . . . . 1 . . . . . . . . . . . Terminal Index 2 | . . . . . 1 . . . . . . . . 1 . . . . . . Repair Station Index 1 | . . . . . . . . . . . . . . . 1 . . . . . Alert Level 11 | . . . . . 1 1 1 . 2 . . . . 1 3 . . 1 . 1 Unreport Threat 8 | . . . . . 1 1 . . 1 . . . . 3 . . . 1 . 1 Locate Traps 4 | . . . . . . 1 . . 2 . . . . . . . . 1 . . Dispatch Records 1 | . . . . . . . . . . . . . . . 1 . . . . . Recall Investigation 1 | . . . . . . . . . . . . . . 1 . . . . . . Recall Extermination 1 | . . . . . . . . . . . . . . 1 . . . . . . Recall Reinforcements 2 | . . . . . . . 1 . . . . . . . . . . 1 . . Hauler Manifests 2 | . 1 . . . 1 . . . . . . . . . . . . . . . Registered Components 1 | . . . . . . 1 . . . . . . . . . . . . . . Derelict Proto ID Bank 1 | . . . 1 . . . . . . . . . . . . . . . . . Fabricator Hacks 4 | . . . . . . 1 . . . . . . . 3 . . . . . . Network Status 2 | . . . . . . 1 . . . . . . . 1 . . . . . . Load Schematic 1 | . . . . . . . . . . . . . . 1 . . . . . . Build 1 | . . . . . . . . . . . . . . 1 . . . . . . Repair Station Hacks 13 | . . . . . . 4 . . 9 . . . . . . . . . . . Scan Component 7 | . . . . . . 2 . . 5 . . . . . . . . . . . Repair 6 | . . . . . . 2 . . 4 . . . . . . . . . . . Recycling Unit Hacks 9 | . 1 . . . 1 1 4 . . . . . . 1 1 . . . . . Process 2 | . 1 . . . 1 . . . . . . . . . . . . . . . Report Inventory 3 | . . . . . . 1 1 . . . . . . . 1 . . . . . Retrieve Matter 2 | . . . . . . . 1 . . . . . . 1 . . . . . . Retrieve Components 2 | . . . . . . . 2 . . . . . . . . . . . . . Scanalyzer 33 | . . . . . 16 . 9 . . . . . . . . . . . . 8 Insert Component 12 | . . . . . 7 . 4 . . . . . . . . . . . . 1 Analyze 21 | . . . . . 9 . 5 . . . . . . . . . . . . 7 Garrison Access Hacks 7 | . . . . . . 1 1 . 2 . . . . 1 . . . 1 . 1 Unlock Access 1 | . . . . . . . . . . . . . . . . . . 1 . . Seal Access 6 | . . . . . . 1 1 . 2 . . . . 1 . . . . . 1 Unauthorized Hacks 6 | . 3 . . . 1 . 1 . . . . . . . . . . . . 1 Terminals 6 | . 3 . . . 1 . 1 . . . . . . . . . . . . 1 Botnet 3 | . 1 . . . . . 1 . . . . . . . . . . . . 1 Operators 3 | . 2 . . . 1 . . . . . . . . . . . . . . . Fabricators . | . . . . . . . . . . . . . . . . . . . . . Repair Stations . | . . . . . . . . . . . . . . . . . . . . . Recycling Units . | . . . . . . . . . . . . . . . . . . . . . Scanalyzers . | . . . . . . . . . . . . . . . . . . . . . Garrison Access . | . . . . . . . . . . . . . . . . . . . . . Data Cores Recovered 2 | . . . . . 1 . . . 1 . . . . . . . . . . . Used 1 | . . . . . . . . . 1 . . . . . . . . . . . Hacking Detections 43 | . 3 . . . 6 7 7 . 3 . . . . 9 4 2 . . . 2 Full Trace Events 6 | . 1 . . . 2 . 1 . . . . . . 1 . 1 . . . . Feedback Events . | . . . . . . . . . . . . . . . . . . . . . Feedback Blocked . | . . . . . . . . . . . . . . . . . . . . . Robot Schematics Acquired 8 | . . . . . . . . . . . . 8 . . . . . . . . Robots Built . | . . . . . . . . . . . . . . . . . . . . . Authchips . | . . . . . . . . . . . . . . . . . . . . . Time . | . . . . . . . . . . . . . . . . . . . . . Total Robot Build Rating . | . . . . . . . . . . . . . . . . . . . . . Part Schematics Acquired 26 | . . . . . 7 . 5 . . . . 12 . . 1 . . . . 1 Parts Built 2 | . . . . . . . . . . . . . . 2 . . . . . . Authchips . | . . . . . . . . . . . . . . . . . . . . . Time 58 | . . . . . . . . . . . . . . 58 . . . . . . Total Part Build Rating 14 | . . . . . . . . . . . . . . 14 . . . . . . Parts Repaired 6 | . . . . . . 2 . . 4 . . . . . . . . . . . Time 299 | . . . . . . 76 . . 223 . . . . . . . . . . . Parts Recycled . | . . . . . . . . . . . . . . . . . . . . . Recycled Matter 17 | . 17 . . . . . . . . . . . . . . . . . . . Retrieved Matter . | . . . . . . . . . . . . . . . . . . . . . Retrieved Components 4 | . . . . . . . 4 . . . . . . . . . . . . . Parts Scanalyzed 12 | . . . . . 7 . 4 . . . . . . . . . . . . 1 Part Schematics Acquired 12 | . . . . . 7 . 4 . . . . . . . . . . . . 1 Parts Damaged 1 | . . . . . . . 1 . . . . . . . . . . . . . Bothacking | -11 -10 -10 -10 -9 -8 -7 -6 -6 -6 -6 -6 -6 -5 -5 -5 -5 -5 -5 -5 -4 ------------ Run | Yrd Mat Min Exi Min Mat Fac Fac Was Fac Low Low Dat Pro Fac Ext Cet Arc Hub Gar Fac Used RIF Installer . | . . . . . . . . . . . . . . . . . . . . . Robots Hacked . | . . . . . . . . . . . . . . . . . . . . . Non-combat . | . . . . . . . . . . . . . . . . . . . . . Combat . | . . . . . . . . . . . . . . . . . . . . . Robot Hacks Applied . | . . . . . . . . . . . . . . . . . . . . . Relay Couplers Released 4 | . . . . . . . . . . . . . . . . . . . 4 . Machine Destruction 4 | . . . . . . . . . . . . . . . . . . . 4 . Fabnet Peak Effective % . | . . . . . . . . . . . . . . . . . . . . . Robots Rewired . | . . . . . . . . . . . . . . . . . . . . . Allies Hacked . | . . . . . . . . . . . . . . . . . . . . . Hacks Repelled . | . . . . . . . . . . . . . . . . . . . . . Allies | -11 -10 -10 -10 -9 -8 -7 -6 -6 -6 -6 -6 -6 -5 -5 -5 -5 -5 -5 -5 -4 -------- Run | Yrd Mat Min Exi Min Mat Fac Fac Was Fac Low Low Dat Pro Fac Ext Cet Arc Hub Gar Fac Total Allies 9 | . . . . . . . . . . . . . . . 5 4 . . . . Largest Group 4 | . . . . . . . . . . . . . . . 3 4 3 2 . . Highest-Rated Group 384 | . . . . . . . . . . . . . . . 159 384 288 192 . . Highest-Rated Ally 159 | . . . . . . . . . . . . . . . 159 144 96 96 . . Total Orders . | . . . . . . . . . . . . . . . . . . . . . Ally Attacks 112 | . . . . . . . . . . . . . . . 51 32 21 8 . . Total Damage 3008 | . . . . . . . . . . . . . . . 1001 1109 770 128 . . Kills 19 | . . . . . . . . . . . . . . . 8 5 4 2 . . Allies Corrupted . | . . . . . . . . . . . . . . . . . . . . . Allies Melted 1 | . . . . . . . . . . . . . . . . 1 . . . . Intel | -11 -10 -10 -10 -9 -8 -7 -6 -6 -6 -6 -6 -6 -5 -5 -5 -5 -5 -5 -5 -4 ------- Run | Yrd Mat Min Exi Min Mat Fac Fac Was Fac Low Low Dat Pro Fac Ext Cet Arc Hub Gar Fac Robot Analysis Total 8 | . 2 . . . . 1 . . 2 . . . . . 2 . . . . 1 Derelict Logs Recovered 4 | . . . . . . . . . . 2 1 . 1 . . . . . . . Drone Launches . | . . . . . . . . . . . . . . . . . . . . . Drone Recoveries . | . . . . . . . . . . . . . . . . . . . . . Exploration | -11 -10 -10 -10 -9 -8 -7 -6 -6 -6 -6 -6 -6 -5 -5 -5 -5 -5 -5 -5 -4 ------------- Run | Yrd Mat Min Exi Min Mat Fac Fac Was Fac Low Low Dat Pro Fac Ext Cet Arc Hub Gar Fac Turns Passed 10915 | 107 1158 121 441 55 1725 927 345 65 1048 294 174 25 197 829 1024 632 524 81 328 815 Spaces Moved 14278 | 52 661 69 276 35 1106 2153 1049 229 1796 855 591 93 577 1227 1243 222 522 150 556 816 Core 240 | 23 . . . . 1 . . . . . . . . . . 153 . . . 63 Treads 1389 | 29 661 69 276 35 227 . . . . . . . . . . . 92 . . . Legs 811 | . . . . . 730 . . . . . . . . . . 38 43 . . . Wheels . | . . . . . . . . . . . . . . . . . . . . . Hover 1829 | . . . . . . . . . . . . . . . . 5 387 150 556 731 Flight 10009 | . . . . . 148 2153 1049 229 1796 855 591 93 577 1227 1243 26 . . . 22 Fastest Speed 23 | 50 160 160 160 160 26 26 27 27 23 26 27 27 27 27 28 32 44 44 44 27 Average Speed 52 | 168 160 160 160 160 117 26 27 27 27 26 27 27 27 27 37 201 78 44 44 59 Slowest Speed 650 | 250 240 160 160 160 650 27 27 27 114 92 27 27 27 108 175 300 260 44 44 176 Overloaded Moves 14 | . . . . . . . . . 7 . . . . . . . . . . 7 Propulsion Burnouts . | . . . . . . . . . . . . . . . . . . . . . Robots Hopped 28 | . . . . . . 10 6 . 2 . . . . 2 8 . . . . . Cave-ins Triggered 3 | . . . . . . . . . . . . . 1 . 2 . . . . . Exploration Rate (%) 50 | 4 93 9 61 13 67 46 26 87 33 57 77 71 68 22 79 63 96 13 58 16 Regions Visited 20 Branch Regions 11 Pre-discovered Areas 1 | . . . . . . . . . . . . 1 . . . . . . . . Known Exits Taken 4 | . . . . . . . . . 1 1 1 . . . . . . 1 . . Unknown Exits Taken 13 | 1 1 1 1 1 1 1 . . . . . 1 1 1 1 1 1 . . . Scrap Searched 11 | . . 2 . . . . . . . 2 7 . . . . . . . . . Spaces Dug 76 | . . . . . . 4 2 . 15 1 . . . 10 32 . . . . 12 Terrain Destroyed 890 | . 57 40 . . . 11 7 . 58 1 22 . 81 45 337 137 12 23 15 44 Melee 48 | . . . . . . 4 2 . 15 1 . . . 10 4 . . . . 12 Projectile . | . . . . . . . . . . . . . . . . . . . . . AOE 842 | . 57 40 . . . 7 5 . 43 . 22 . 81 35 333 137 12 23 15 32 Terrain Rammed . | . . . . . . . . . . . . . . . . . . . . . Walls Destroyed . | . . . . . . . . . . . . . . . . . . . . . Machines Disabled . | . . . . . . . . . . . . . . . . . . . . . Actions | -11 -10 -10 -10 -9 -8 -7 -6 -6 -6 -6 -6 -6 -5 -5 -5 -5 -5 -5 -5 -4 --------- Run | Yrd Mat Min Exi Min Mat Fac Fac Was Fac Low Low Dat Pro Fac Ext Cet Arc Hub Gar Fac Total 17167 | 69 720 74 276 34 1400 2461 1096 231 2293 905 601 92 598 1692 1732 392 618 163 619 1101 Wait 2038 | 6 7 . . . 163 198 22 . 416 34 . . . 418 329 137 22 7 36 243 Move 14201 | 52 660 68 275 34 1105 2132 1037 228 1791 854 590 92 575 1222 1224 221 521 150 554 816 Hop 27 | . . . . . . 9 6 . 2 . . . . 2 8 . . . . . Pick Up 99 | 2 7 . 1 . 13 29 10 . 11 1 2 . . 9 5 4 2 1 1 1 Fast Attach 122 | 6 13 . . . 20 15 2 1 14 . 2 . . 7 12 4 17 . 1 8 Attach 69 | . . 1 . . 3 6 4 . 6 3 2 . 3 6 15 11 6 1 1 1 Detach 39 | . 2 . . . 2 8 1 2 7 1 1 . . 4 4 2 4 . . 1 Swap 18 | 1 6 2 . . 5 1 . . . 2 . . . . 1 . . . . . Drop 107 | 2 7 . . . 23 7 6 . 10 . 1 . . 10 7 1 29 2 1 1 Fire 154 | . 16 2 . . 65 3 1 . 1 . 3 . 19 2 21 9 1 2 1 8 Melee 159 | . . . . . . 16 7 . 35 10 . . . 12 26 3 16 . 12 22 Ram . | . . . . . . . . . . . . . . . . . . . . . Kick 1 | . . . . . 1 . . . . . . . . . . . . . . . Crush 3 | . 2 1 . . . . . . . . . . . . . . . . . . Escape Stasis 130 | . . . . . . 37 . . . . . . 1 . 80 . . . 12 . Rewire . | . . . . . . . . . . . . . . . . . . . . . Trap . | . . . . . . . . . . . . . . . . . . . . . Miscellaneous . | . . . . . . . . . . . . . . . . . . . . . Route ------- -11/Scrapyard -10/Materials (discovered 5 exits: [*Mat x3] / [*Min x2]) -10/Mines -10/Exiles -9/Mines -8/Materials (discovered 2 exits: *Fac x2) -7/Factory -6/Factory -6/Waste -6/Factory (discovered 2 exits: *Low x2) -6/Lower Caves -6/Lower Caves -6/Data Miner -5/Proximity Caves -5/Factory (discovered 3 exits: [*Upp x2] / *Ext) -5/Extension (discovered 2 exits: *Fac / *Cet) -5/Cetus -5/Archives (discovered 3 exits: *Fac / *Hub x2) -5/Hub_04(d) -5/Garrison (discovered 2 exits: *Fac x2) -4/Factory History --------- Turn | Location | Event 23 | -11/Scrapyard | Discovered new exit (range 15) 108 | -11/Scrapyard | Entered Materials 279 | -10/Materials | Discovered new exit (range 16) 310 | -10/Materials | Build established: Mutant 428 | -10/Materials | Discovered new exit (range 11) 726 | -10/Materials | Discovered new exit (range 4) 862 | -10/Materials | Discovered new exit (range 10) 1048 | -10/Materials | Discovered new exit (range 16) 1088 | -10/Materials | Central database locked down 1266 | -10/Materials | Entered Mines 1306 | -10/Mines | Assembled infested the area 1376 | -10/Mines | Deemed a non-threat by the Exiles lab entrance 1377 | -10/Mines | Discovered new exit (range 5) 1387 | -10/Mines | Entered Exiles 1443 | -10/Exiles | Met 8R-AWN 1477 | -10/Exiles | Met EX-HEX 1541 | -10/Exiles | Met EX-BIN 1576 | -10/Exiles | Aligned with FarCom system 1578 | -10/Exiles | Given EX-Vault access code 1626 | -10/Exiles | Opened EX-Vault 1639 | -10/Exiles | Found Lightpack 2.0 1673 | -10/Exiles | Warned to stay clear of 0b10 Research branches 1726 | -10/Exiles | Met EX-DEC 1798 | -10/Exiles | Discovered new exit (range 14) 1828 | -10/Exiles | Left Exiles lab with Lightpack 2.0 1828 | -10/Exiles | Entered Mines 1872 | -9/Mines | Discovered new exit (range 7) 1883 | -9/Mines | Entered Materials 1883 | -8/Materials | Evolved 4 slots: Propulsion x2, Utility x2 2897 | -8/Materials | Build established: Scavenger-Mutant 3035 | -8/Materials | Discovered new exit (range 4) 3191 | -8/Materials | Destroyed 7 combat bots 3310 | -8/Materials | Discovered new exit (range 16) 3608 | -8/Materials | Entered Factory 3608 | -7/Factory | Evolved 2 slots: Utility x2 3862 | -7/Factory | Build established: Hauler-Sprinter 3905 | -7/Factory | Discovered new exit (range 10) 4260 | -7/Factory | Repaired Cesium-ion Thruster 4300 | -7/Factory | Repaired Katana 4535 | -7/Factory | Entered another Factory area 4535 | -6/Factory | Evolved 2 slots: Utility x2 4568 | -6/Factory | Found Launcher Loader 4880 | -6/Factory | Sucked down chute 4880 | -6/Factory | Entered Waste 4888 | -6/Waste | Spotted C-40 Crusher 4895 | -6/Waste | EMP discharged 4909 | -6/Waste | Spotted C-40 Crusher 4909 | -6/Waste | Spotted C-40 Crusher 4910 | -6/Waste | Spotted C-40 Crusher 4911 | -6/Waste | Spotted C-40 Crusher 4913 | -6/Waste | Spotted C-40 Crusher 4937 | -6/Waste | Discovered new exit (range 11) 4945 | -6/Waste | Entered Factory 5075 | -6/Factory | Repaired Broken Neutron Missile Launcher 5193 | -6/Factory | Repaired Cesium-ion Thruster 5222 | -6/Factory | Discovered new exit (range 15) 5513 | -6/Factory | Identified exit to Lower Caves 5694 | -6/Factory | Repaired Gravity Neutralizer 5829 | -6/Factory | Build established: Hacker-Sprinter 5929 | -6/Factory | Repaired Impact Mace 5954 | -6/Factory | Cargo convoy interrupted 5993 | -6/Factory | Entered Lower Caves 6039 | -6/Lower Caves | Learned Factory stockpile data 6264 | -6/Lower Caves | Identified exit to Lower Caves 6287 | -6/Lower Caves | Entered another Lower Caves area 6314 | -6/Lower Caves | Identified exit to Data Miner 6358 | -6/Lower Caves | Spotted B-75 Beast 6402 | -6/Lower Caves | Encountered a Warlord checkpoint 6433 | -6/Lower Caves | Build established: Hauler-Sprinter 6461 | -6/Lower Caves | Entered Data Miner 6461 | -6/Data Miner | Discovered new exit (range 6) 6467 | -6/Data Miner | Met Data Miner 6473 | -6/Data Miner | Learned location of Section 7 (-3) 6473 | -6/Data Miner | Acquired the access code to Warlord's prototype stash 6478 | -6/Data Miner | Received God Mode back door access code from Data Miner 6486 | -6/Data Miner | Entered Proximity Caves 6504 | -5/Proximity Caves | Attracted the attention of an 0b10 base 6599 | -5/Proximity Caves | Crushed by falling debris 6600 | -5/Proximity Caves | System corruption reached 10% 6648 | -5/Proximity Caves | Spotted B-75 Beast 6679 | -5/Proximity Caves | Lost 4 parts (2u2w) 6680 | -5/Proximity Caves | Learned location of 1 exit from Upper Caves 6680 | -5/Proximity Caves | Discovered new exit (range 9) 6683 | -5/Proximity Caves | Entered Factory 6683 | -5/Factory | Evolved 2 slots: Propulsion x1, Utility x1 6687 | -5/Factory | Discovered new exit (range 15) 7011 | -5/Factory | Fabricated Impulse Thruster? 7224 | -5/Factory | Build established: Hacker-Sprinter 7378 | -5/Factory | Discovered new exit (range 10) 7381 | -5/Factory | Discovered new exit (range 16) 7512 | -5/Factory | Entered Extension 7549 | -5/Extension | Spotted B-75 Beast 7614 | -5/Extension | Build established: Hacker-Scout 7652 | -5/Extension | Rescued a captive Derelict 7744 | -5/Extension | Rescued a captive Derelict 7841 | -5/Extension | Rescued a captive Derelict 7843 | -5/Extension | Rescued a captive Derelict 7988 | -5/Extension | Crushed by falling debris 7993 | -5/Extension | Crushed by falling debris 7994 | -5/Extension | System corruption reached 10% 8024 | -5/Extension | Lost 5 parts (2n3u) 8087 | -5/Extension | Disrupted transfer network 8088 | -5/Extension | Rescued A7 8103 | -5/Extension | Energy Cycler disabled 8104 | -5/Extension | Rescued a captive Derelict 8335 | -5/Extension | Discovered new exit (range 10) 8336 | -5/Extension | Discovered new exit (range 6) 8375 | -5/Extension | Build established: Hauler-Mutant 8536 | -5/Extension | Entered Cetus 8536 | -5/Cetus | Accompanied by 1 ally (A7) 8541 | -5/Cetus | Acquired a Cetus Manufacturing Module code from A7 8555 | -5/Cetus | Spotted Cetus Guard 8557 | -5/Cetus | Spotted Cetus Guard 8569 | -5/Cetus | Spotted Cetus Guard 8573 | -5/Cetus | Spotted Cetus Guard 8580 | -5/Cetus | Allies destroyed Cetus Guard 8582 | -5/Cetus | Extracted ID and sensor layout for unrecognized location from A7's data core 8591 | -5/Cetus | Destroyed Cetus Guard 8597 | -5/Cetus | Destroyed Cetus Guard 8605 | -5/Cetus | Core integrity fell below 50% 8654 | -5/Cetus | Destroyed Cetus Guard 8681 | -5/Cetus | Lost 14 parts (2p4n4u4w) 8684 | -5/Cetus | Found Prototype Protection 8819 | -5/Cetus | Started Cetus Manufacturing Module 8844 | -5/Cetus | Manufactured an Enhanced Grunt 8869 | -5/Cetus | Manufactured an Enhanced Grunt 8894 | -5/Cetus | Manufactured an Enhanced Grunt 8913 | -5/Cetus | Incoming investigation squad redirected 8919 | -5/Cetus | Manufactured an Enhanced Grunt 8927 | -5/Cetus | Cetus Manufacturing Module disabled 8956 | -5/Cetus | Found Prototype Device 8956 | -5/Cetus | Identified Exp. Thermal Shield 9134 | -5/Cetus | Identified Med. Regenerative Plating 9142 | -5/Cetus | Discovered new exit (range 16) 9168 | -5/Cetus | Entered Archives 9168 | -5/Archives | Accompanied by 3 allies 9268 | -5/Archives | Discovered new exit (range 16) 9289 | -5/Archives | Discovered new exit (range 14) 9372 | -5/Archives | Discovered new exit (range 17) 9692 | -5/Archives | Entered Hub_04(d) 9692 | -5/Hub_04(d) | Accompanied by 2 allies 9773 | -5/Hub_04(d) | Identified exit to Garrison 9773 | -5/Hub_04(d) | Entered Garrison 9785 | -5/Garrison | Build established: Hacker-Mutant 9905 | -5/Garrison | Triggered checkpoint 9909 | -5/Garrison | Triggered checkpoint 9920 | -5/Garrison | Discovered new exit (range 8) 9951 | -5/Garrison | Attempted to access garrison exit controls, blocked by remote lockdown 9967 | -5/Garrison | Triggered checkpoint 9976 | -5/Garrison | Garrison Relay disabled 10031 | -5/Garrison | Triggered checkpoint 10096 | -5/Garrison | Discovered new exit (range 12) 10101 | -5/Garrison | Entered Factory 10101 | -4/Factory | Evolved 2 slots: Utility x1, Weapon x1 10474 | -4/Factory | Lost 3 parts (3n) 10558 | -4/Factory | Lost 3 parts (1n1u1w) 10863 | -4/Factory | Released all parts (3) 10867 | -4/Factory | Core integrity fell below 50% 10879 | -4/Factory | System corruption reached 10% 10883 | -4/Factory | Core integrity fell below 20% 10907 | -4/Factory | Lost 10 parts (3n5u2w) 10916 | -4/Factory | Destroyed by H-71 Marshal with Heavy Mass Driver Last Messages --------------- Penetrated by Slug. Wave Gun destroyed. Released Imp. Hacking Suite. Released Imp. System Shield. Released System Shield. Acquired 2 matter. C-35 Carver destroyed. Acquired Imp. Surge Thruster. Manufacturing Mainframe disabled. System corrupted: Heat flow error (+174). Imp. Surge Thruster destroyed. C-35 Carver destroyed. Door malfunctions. Knocked back. Neutrino Reactor explodes. K-01 Serf collects debris. Acquired Gravmag Array. K-01 Serf collects debris. System corrupted: Heat flow error (+243). K-01 Serf collects debris. Map ----- +----------------------------------------------------+ | ???????????????????????????????????????# """ """ | | ???????????????????#########???????????# """ """ | | ???????????????????#" ????????????# """ """ | | ???????????????????#" " "??????????????# | | ???????????????????#"""????????????????# | | ??????????????######"##########????????# | | | ?????????????## % /% #????????# !% " | | ?????????????#"%!! ! #????????# ! R" | | ?????????????##[!! """ #????????# """ | | ??????????????#[!!] """ ############/####### | | ??????????????#!%=% """" ## % #? | | ??????????????# """" ## """ #? | | ??????????????# R ## "T" """"""" #? | | ??????????????#######;/######### " " """"""" #? | | ??????????????####### % + """"""" #? | | ??????????????+ ######## """"""" #? | | ??????????????####### #??????# l ?? #? | | ????????????????????# #??????# g ?#? | | ??????????????????### ###????# ??? | | ????####+########## ! #????#########+######### | | ????# ##### | | ???## ] | | ???# | | ???#T H | | ???## g %##### | | ????# ######### s @#?????#+##??###+######## | | ????# ############ ####?????????????# #?? | | ????# # # #?????????????# "" #?? | | ??? / / g #! #?????????????# "" #?? | | ?? # # ! # #?????????????# """ #?? | | ! # # # s #?????????????# """ ### | | " ?# # #s #?????????????# """ + | | ??# # / s #?????????????# ### | | "???# #[ # #?????????????# ## | | ????# # p# #?????????????# ## | | ????# # # #?????????????# | !## | | ????# # # #?????????????# ## | | ????# # # "" #?????????????# ** ## | | ????# # # "F"" #?????????????# ** ## | | ????# # # """" #?????????????# * ## | | ????# # / #?????????????#######?#? | | ???? # ########??????????????????????? | | ???? # #?????????????????????????????? | | ????? # #?????????????????????????????? | | ??????? # #?????????????????????????????? | | ??????????##########?????????????????????????????? | | ?????????????????????????????????????????????????? | | ?????????????????????????????????????????????????? | | ?????????????????????????????????????????????????? | | ?????????????????????????????????????????????????? | +----------------------------------------------------+ Best States ------------- Heat Dissipation 43 Energy Generation 23 Energy Capacity 315 Matter Stores 300 Matter Capacity 300 Sight Range 22 Terrain Scan Range 20 Terrain Scan Density 110 Additional Mass Support 12 Armor Coverage 450 Resistance: KI 20 Resistance: TH 30 Propulsion Shielding 66 Point Defense Rating 160 Melee Speed Boost 20 Phase Shifting 5 Evasion (%) 74 Targeting Accuracy 5 Melee Accuracy 21 Launcher Accuracy 20 Core Analysis 6 Recoil Reduction 4 Offensive Hacking 32 Defensive Hacking 36 Trap Extractor Capacity 6 Item Schematics ----------------- Imp. VTOL Module | -8/Materials | Scanalyzed Imp. Propulsion Shielding | -8/Materials | Scanalyzed Imp. Terrain Scan Processor | -8/Materials | Scanalyzed Sml. Storage Unit | -8/Materials | Scanalyzed Grenade Launcher | -8/Materials | Scanalyzed Imp. Ion Engine | -8/Materials | Scanalyzed Imp. Assault Rifle | -8/Materials | Scanalyzed System Shield | -6/Factory | Scanalyzed Enh. Optical Array | -6/Factory | Scanalyzed Cesium-ion Thruster | -6/Factory | Scanalyzed Launcher Guidance Computer | -6/Factory | Scanalyzed Cld. VTOL Module | -6/Factory | Hacked Combat Drone Bay | -6/Data Miner | Free Lgt. Regenerative Plating | -6/Data Miner | Free Enh. Flexi-carbon Leg | -6/Data Miner | Free Imp. Matter Compressor | -6/Data Miner | Free Kinetic Spear | -6/Data Miner | Free Field Propulsion Array | -6/Data Miner | Free Adv. Cryofiber Web | -6/Data Miner | Free Adv. Datajack | -6/Data Miner | Free Imp. Arc Projector | -6/Data Miner | Free Impulse Thruster | -6/Data Miner | Free Adv. Power Amplifier | -6/Data Miner | Free Adv. Recalibrator | -6/Data Miner | Free Point Defense System | -5/Extension | Hacked Imp. Trap Extractor | -4/Factory | Scanalyzed Robot Schematics ------------------ A-15 Conveyor | -6/Data Miner | Free P-60 Hacker | -6/Data Miner | Free B-48 Gladiator | -6/Data Miner | Free L-41 Fighter | -6/Data Miner | Free E-15 Imp | -6/Data Miner | Free B-60 Warrior | -6/Data Miner | Free G-50 Soldier | -6/Data Miner | Free R-10 Processor | -6/Data Miner | Free Fabricated ------------ Impulse Thruster | x2 | -5/Factory Alien Tech Used ----------------- None Achievements -------------- It Was An Accident, I Swear Slippery One Challenges ------------ None Game ------ Seed InertialShadeObliterator Manual? 0 Play Time 02:54:02 Cumulative 42.6 hours Start 2024.09.29 @ 19:25:14 End 2024.09.30 @ 11:21:12 Sessions 3 Manual Loads 0 Difficulty Rogue Special Mode None Game No. 48 Rogue 48 Adventurer 0 Explorer 0 Win Type - Total 0 Types 0/0/0/0/0/0/0/0/0 Lore% 27 Gallery% 38 Achievement% 35 Wizard Run 0 Options --------- Layout 0 ASCII 0 Keyboard 0 Movement Arrows Keybinds 0 Fullscreen 1 Font 18/SmallcapsGlow Map View 76x50 Zoom Use 0% Tactical HUD 0 Map Filters NONE Filters NONE Steam 0 RUN: d5ab0382-6b53-4216-a7af-9f52b572def6